bitfinex/quotes_SOLUSD_20241115
["timestamp","ask_amount","ask_price","bid_price","bid_amount"]
[1731662198989,67.12823465,211.97,211.96,0.4532661]
[1731662200476,67.12823465,211.97,211.84,18.50826065]
[1731662200477,43.902374,211.93,211.84,18.50826065]
[1731662200681,23.776884,211.89,211.83,18.50826065]
[1731662200875,23.902374,211.9,211.83,18.50826065]
[1731662201088,23.776884,211.88,211.83,18.50826065]
[1731662201275,18.50826065,211.87,211.8,18.50826065]
[1731662201478,42.28514465,211.88,211.8,18.50826065]
[1731662201797,18.50826065,211.87,211.8,18.50826065]
[1731662201982,23.776884,211.86,211.8,18.50826065]
[1731662202599,42.28514465,211.86,211.78,18.50826065]
[1731662202901,42.28514465,211.86,211.79,18.50826065]
[1731662203100,28.496984,211.86,211.8,18.50826065]
[1731662203297,18.50826065,211.87,211.77,4.722]
[1731662203298,162.8,211.92,211.85,18.50826065]
[1731662203492,4.7175,211.98,211.78,0.12549]
[1731662203803,19.9101,211.97,211.8,0.1]
[1731662203999,19.9101,211.97,211.89,18.50826065]
[1731662204386,19.9101,211.97,211.78,23.902374]
[1731662204387,18.50826065,211.94,211.86,18.50826065]
[1731662205002,23.776884,211.93,211.87,18.50826065]
[1731662205182,28.495484,211.93,211.87,18.50826065]
[1731662205382,18.50826065,211.91,211.84,18.50826065]
[1731662205598,18.50826065,211.9,211.83,18.50826065]
[1731662205802,23.776884,211.89,211.83,18.50826065]
[1731662205980,42.28514465,211.89,211.82,30.31016065]
[1731662206180,42.28514465,211.89,211.82,18.50826065]
[1731662206390,18.50826065,211.84,211.77,16.5268]
[1731662206683,18.50826065,211.84,211.77,35.03506065]
[1731662207108,18.50826065,211.84,211.77,30.31316065]
[1731662207792,23.22886065,211.84,211.77,30.31316065]
[1731662208197,42.28514465,211.83,211.75,34.94822675]
[1731662208505,18.50826065,211.8,211.75,0.4532661]
[1731662208686,18.50826065,211.81,211.75,0.4532661]
[1731662208892,0.12549,211.82,211.76,18.50826065]
[1731662209303,4.84659,211.82,211.76,18.50826065]
[1731662209616,23.776884,211.81,211.75,18.96152675]
[1731662210103,18.50826065,211.79,211.75,0.4532661]
[1731662210690,18.50826065,211.77,211.75,0.4532661]
[1731662211293,42.41063465,211.76,211.75,0.4532661]
[1731662211503,62.41063465,211.76,211.75,0.4532661]
[1731662212115,147.69573465,211.76,211.75,0.4532661]
[1731662212705,77.69573465,211.76,211.75,0.4532661]
[1731662213591,57.69573465,211.76,211.75,0.4532661]
[1731662213812,38.50826065,211.76,211.75,0.4532661]
[1731662214110,38.63375065,211.76,211.75,0.4532661]
[1731662214611,20.12549,211.76,211.75,0.4532661]
[1731662215994,38.66626065,211.81,211.75,0.4532661]
[1731662216196,42.28514465,211.8,211.75,0.4532661]
[1731662216394,18.63375065,211.79,211.75,0.4532661]
[1731662217004,0.12549,211.77,211.75,0.4532661]
[1731662218912,18.50826065,211.79,211.75,0.4532661]
[1731662219106,18.50826065,211.79,211.66,18.3987]
[1731662219107,4.7215,211.8,211.74,18.50826065]
[1731662219789,240.10523354,211.85,211.66,18.4987]
[1731662219790,4.7209,211.83,211.77,18.50826065]
[1731662220610,18.50826065,211.85,211.78,18.50826065]
[1731662220895,18.50826065,211.85,211.7,11.8086]
[1731662220896,23.22816065,211.87,211.8,18.50826065]
[1731662221109,18.50826065,211.9,211.83,18.50826065]
[1731662221318,34.15456065,211.91,211.84,18.50826065]
[1731662221617,18.50826065,211.91,211.84,18.50826065]
[1731662221819,18.50826065,211.92,211.84,18.50826065]
[1731662221994,4.719,211.91,211.84,18.50826065]
[1731662222407,23.22726065,211.91,211.84,18.50826065]
[1731662222604,4.719,211.91,211.84,18.50826065]
[1731662223525,4.7186,211.93,211.87,18.50826065]
[1731662223822,16.6005,211.96,211.83,16.5224]
[1731662223823,29.91733038,211.97,211.9,18.50826065]
[1731662223999,23.22596065,211.97,211.9,18.50826065]
[1731662224204,18.50826065,211.99,211.92,18.50826065]
[1731662224419,4.717,212.0,211.95,18.50826065]
[1731662224599,4.717,212.0,211.88,22.6569]
[1731662224600,4.717,212.0,211.94,18.50826065]
[1731662225010,18.50826065,212.04,211.97,18.50826065]
[1731662225211,4.7163,212.03,211.97,18.50826065]
[1731662225421,23.22456065,212.03,211.96,18.50826065]
[1731662225618,4.7163,212.03,211.98,18.50826065]
[1731662226220,4.7155,212.07,212.01,18.50826065]
[1731662226596,18.50826065,212.08,212.02,18.50826065]
[1731662226802,18.50826065,212.07,212.0,18.50826065]
[1731662227014,18.50826065,212.08,212.01,18.50826065]
[1731662227209,4.715,212.09,211.94,23.776884]
[1731662227210,18.50826065,212.06,211.94,23.776884]
[1731662227421,18.50826065,212.07,212.01,18.50826065]
[1731662227618,23.22326065,212.09,212.02,18.50826065]
[1731662227843,4.715,212.09,212.04,18.50826065]
[1731662228320,4.715,212.09,212.03,18.50826065]
[1731662228529,18.50826065,212.1,212.03,18.50826065]
[1731662229027,18.50826065,212.09,212.02,18.50826065]
[1731662229732,4.7141,212.13,212.08,18.50826065]
[1731662230024,18.63375065,212.14,212.07,18.50826065]
[1731662230325,18.50826065,212.15,212.09,18.50826065]
[1731662230558,18.50826065,212.15,212.08,18.50826065]
[1731662231010,18.50826065,212.15,212.02,16.5076]
[1731662231011,23.22146065,212.17,212.1,18.50826065]
[1731662231412,18.50826065,212.16,212.09,18.50826065]
[1731662231742,18.50826065,212.13,212.06,18.50826065]
[1731662231943,18.50826065,212.12,212.05,18.50826065]
[1731662232608,18.50826065,212.13,212.06,18.50826065]
[1731662232828,4.7138,212.15,212.1,18.50826065]
[1731662233537,162.8,212.19,212.13,18.50826065]
[1731662233538,4.7128,212.19,212.13,18.50826065]
[1731662233735,23.22106065,212.19,212.12,18.50826065]
[1731662234257,0.12549,212.22,212.12,18.50826065]
[1731662234425,18.50826065,212.19,212.12,18.50826065]
[1731662234740,18.50826065,212.18,212.11,18.50826065]
[1731662235035,18.50826065,212.12,212.04,18.50826065]
[1731662235220,18.50826065,212.11,212.04,18.50826065]
[1731662235420,18.50826065,212.12,212.06,18.50826065]
[1731662235641,18.50826065,212.16,212.04,4.716]
[1731662235837,20.12549,212.19,212.04,4.716]
[1731662236034,18.50826065,212.17,212.1,18.50826065]
[1731662236230,18.50826065,212.16,212.1,18.50826065]
[1731662236433,4.7136,212.15,212.09,18.50826065]
[1731662237229,23.22186065,212.15,212.08,18.50826065]
[1731662237431,18.50826065,212.14,212.08,18.50826065]
[1731662237631,18.50826065,212.13,212.06,18.50826065]
[1731662237838,18.50826065,212.12,212.05,18.50826065]
[1731662238347,18.50826065,212.11,212.04,30.29846065]
[1731662238529,18.50826065,212.12,212.06,18.50826065]
[1731662238723,18.50826065,212.12,212.05,18.50826065]
[1731662239041,4.7136,212.15,212.07,18.50826065]
[1731662239042,18.50826065,212.13,212.07,18.50826065]
[1731662239247,18.50826065,212.13,212.06,18.50826065]
[1731662239443,18.50826065,212.13,212.07,18.50826065]
[1731662239616,23.22216065,212.14,212.07,18.50826065]
[1731662240529,23.22216065,212.14,212.04,16.5062]
[1731662240530,18.50826065,212.12,212.05,18.50826065]
[1731662240726,23.22216065,212.14,212.07,18.50826065]
[1731662240928,4.7139,212.14,212.01,6.1363]
[1731662241144,0.12549,212.13,212.02,4.7164]
[1731662242060,18.50826065,212.11,212.04,18.50826065]
[1731662242218,18.50826065,212.12,212.05,18.50826065]
[1731662242623,18.50826065,212.11,212.04,18.50826065]
[1731662243034,23.902374,212.15,212.05,18.50826065]
[1731662243035,18.50826065,212.12,212.05,18.50826065]
[1731662243953,18.50826065,212.07,212.0,18.50826065]
[1731662244149,18.50826065,212.04,211.98,16.4478]
[1731662244441,18.50826065,212.04,211.97,18.50826065]
[1731662244442,18.50826065,212.01,211.94,18.50826065]
[1731662244647,70.0,212.09,211.93,15.7978]
[1731662244648,43.776884,212.08,211.97,18.50826065]
[1731662245031,18.50826065,212.03,211.95,18.50826065]
[1731662245232,18.50826065,212.0,211.92,18.50826065]
[1731662245541,18.50826065,211.99,211.91,25.07116065]
[1731662245736,18.50826065,211.99,211.92,18.50826065]
[1731662246150,18.50826065,211.96,211.89,18.50826065]
[1731662246743,18.63375065,212.01,211.94,18.50826065]
[1731662246950,0.12549,212.01,211.97,18.50826065]
[1731662247125,0.12549,212.01,211.9,4.7192]
[1731662247326,0.12549,212.01,211.91,16.6375]
[1731662247529,0.12549,212.01,211.94,23.776884]
[1731662247744,0.12549,212.01,211.93,11.7963]
[1731662247937,23.35055065,212.01,211.94,18.50826065]
[1731662248143,4.84229,212.01,211.95,18.50826065]
[1731662248322,18.50826065,211.99,211.92,25.15236065]
[1731662248527,18.50826065,211.99,211.92,18.50826065]
[1731662249152,23.35055065,212.01,211.94,18.50826065]
[1731662249332,18.50826065,211.97,211.9,18.50826065]
[1731662249526,18.50826065,211.98,211.91,18.50826065]
[1731662249726,18.50826065,211.96,211.88,18.50826065]
[1731662249951,18.50826065,211.95,211.87,25.15236065]
[1731662250151,18.50826065,211.95,211.88,18.50826065]
[1731662250354,18.50826065,211.98,211.91,18.50826065]
[1731662250653,20.0,211.99,211.93,18.50826065]
[1731662250836,20.0,212.0,211.94,18.50826065]
[1731662251034,20.0,212.0,211.95,18.50826065]
[1731662251249,24.7171,212.0,211.94,18.50826065]
[1731662251849,24.7171,212.0,211.9,18.50826065]
[1731662251850,18.50826065,211.97,211.9,18.50826065]
[1731662252050,18.50826065,211.95,211.88,18.50826065]
[1731662252748,18.50826065,211.95,211.87,16.5193]
[1731662252749,18.50826065,211.96,211.89,18.50826065]
[1731662253135,4.718,211.95,211.89,18.50826065]
[1731662253451,18.50826065,211.92,211.85,18.50826065]
[1731662253644,18.50826065,211.89,211.81,18.50826065]
[1731662253950,18.50826065,211.88,211.81,18.50826065]
[1731662254350,18.50826065,211.89,211.81,18.50826065]
[1731662255155,23.22806065,211.88,211.81,18.50826065]
[1731662255344,18.50826065,211.87,211.79,18.50826065]
[1731662255948,18.50826065,211.87,211.8,18.50826065]
[1731662256331,20.0,211.89,211.82,18.50826065]
[1731662256776,23.22756065,211.9,211.82,18.50826065]
[1731662257648,18.50826065,211.97,211.89,18.50826065]
[1731662257955,15.4775,211.99,211.93,18.50826065]
[1731662258133,4.84239,212.01,211.95,18.50826065]
[1731662258337,4.84239,212.01,211.87,21.9949]
[1731662258338,30.0,211.96,211.87,21.9949]
[1731662258550,30.0,211.96,211.94,18.50826065]
[1731662258751,18.50826065,211.99,211.92,18.50826065]
[1731662258937,18.50826065,211.98,211.91,18.50826065]
[1731662259541,4.7176,211.97,211.91,18.50826065]
[1731662259962,4.7176,211.97,211.92,18.50826065]
[1731662260163,4.7176,211.97,211.91,18.50826065]
[1731662260461,18.50826065,211.99,211.92,18.50826065]
[1731662260644,0.12549,212.01,211.87,21.9949]
[1731662260645,4.7169,212.0,211.95,18.50826065]
[1731662260837,4.7169,212.0,211.96,18.50826065]
[1731662262352,4.7169,212.0,211.95,18.50826065]
[1731662262555,0.12549,212.01,211.96,18.50826065]
[1731662262735,0.12549,212.01,211.92,16.5155]
[1731662262736,0.12549,212.01,211.98,18.50826065]
[1731662263243,0.12549,212.01,211.97,18.50826065]
[1731662263446,0.12549,212.01,212.0,18.50826065]
[1731662265254,0.12549,212.01,211.99,18.50826065]
[1731662265459,0.12549,212.01,212.0,18.50826065]
[1731662265860,0.12549,212.01,212.0,42.28514465]
[1731662266445,0.12549,212.01,212.0,47.00204465]
[1731662267755,0.12549,212.01,212.0,18.50826065]
[1731662268140,0.12549,212.01,211.97,30.30216065]
[1731662268343,0.12549,212.01,211.97,11.7939]
[1731662268549,0.12549,212.01,211.99,18.50826065]
[1731662268849,0.12549,212.01,212.0,18.50826065]
[1731662269562,0.12549,212.01,211.98,18.50826065]
[1731662270261,0.12549,212.01,211.95,23.22616065]
[1731662270458,18.50826065,211.99,211.92,30.30496065]
[1731662271167,18.50826065,211.99,211.92,18.50826065]
[1731662271352,18.50826065,211.97,211.9,18.50826065]
[1731662271552,18.50826065,211.94,211.87,30.30756065]
[1731662271950,18.50826065,211.91,211.84,18.50826065]
[1731662272170,18.50826065,211.89,211.82,18.50826065]
[1731662272388,18.50826065,211.88,211.81,18.50826065]
[1731662272752,18.50826065,211.87,211.8,18.50826065]
[1731662274066,18.50826065,211.91,211.85,18.50826065]
[1731662274255,18.50826065,211.92,211.85,18.50826065]
[1731662274662,20.0,211.93,211.85,18.50826065]
[1731662274663,18.50826065,211.91,211.85,18.50826065]
[1731662274872,18.50826065,211.92,211.85,18.50826065]
[1731662275075,29.81006065,211.94,211.87,18.50826065]
[1731662275470,18.50826065,211.96,211.89,18.50826065]
[1731662275774,23.22626065,211.96,211.89,18.50826065]
[1731662276152,18.50826065,211.93,211.86,30.30836065]
[1731662276547,18.50826065,211.97,211.91,18.50826065]
[1731662276799,0.12549,212.01,211.95,18.50826065]
[1731662276954,0.12549,212.01,211.9,23.776884]
[1731662277271,0.12549,212.01,211.89,21.9153]
[1731662277477,4.84229,212.01,211.89,21.9153]
[1731662277777,4.84229,212.01,211.9,16.5172]
[1731662278073,18.50826065,211.98,211.91,18.50826065]
[1731662278865,18.50826065,211.99,211.92,18.50826065]
[1731662279271,23.22566065,211.99,211.92,18.50826065]
[1731662279460,18.50826065,211.98,211.92,18.50826065]
[1731662279781,18.50826065,211.98,211.84,0.1]
[1731662279782,18.50826065,211.95,211.88,18.50826065]
[1731662280251,18.50826065,211.96,211.89,18.50826065]
[1731662280574,18.50826065,211.97,211.9,18.50826065]
[1731662281077,4.7178,211.96,211.9,18.50826065]
[1731662281577,4.7178,211.96,211.86,11.8002]
[1731662281578,18.63375065,212.01,211.94,18.50826065]
[1731662282577,23.35055065,212.01,211.94,18.50826065]
[1731662282752,23.35055065,212.01,211.88,23.776884]
[1731662282956,18.50826065,211.98,211.91,18.50826065]
[1731662283176,0.12549,212.01,211.97,18.50826065]
[1731662283376,0.12549,212.01,211.99,18.50826065]
[1731662283669,0.12549,212.01,211.9,0.1]
[1731662283670,0.12549,212.01,212.0,18.50826065]
[1731662285075,0.12549,212.01,211.99,18.50826065]
[1731662285269,0.12549,212.01,211.97,16.5111]
[1731662285270,0.12549,212.01,212.0,18.50826065]
[1731662286824,0.12549,212.01,212.0,42.28514465]
[1731662287181,0.12549,212.01,212.0,47.00204465]
[1731662287380,18.50826065,212.16,212.01,23.876884]
[1731662287594,18.50826065,212.15,212.07,18.50826065]
[1731662287771,23.22176065,212.16,212.09,18.50826065]
[1731662288088,18.50826065,212.15,212.08,18.50826065]
[1731662288590,23.22176065,212.16,212.09,18.50826065]
[1731662288997,4.7135,212.16,212.1,18.50826065]
[1731662289175,4.7135,212.16,212.09,18.50826065]
[1731662289372,18.50826065,212.17,212.1,18.50826065]
[1731662289589,18.50826065,212.21,212.14,18.50826065]
[1731662290296,22.1923,212.26,212.2,18.50826065]
[1731662290705,0.4532661,212.27,212.2,18.50826065]
[1731662290879,18.96152675,212.27,212.2,18.50826065]
[1731662291279,0.4532661,212.27,212.21,18.50826065]
[1731662291503,18.50826065,212.25,212.17,30.29126065]
[1731662291691,5.1642661,212.27,212.13,23.22226065]
[1731662291692,18.50826065,212.2,212.13,23.22226065]
[1731662291878,18.50826065,212.19,212.12,35.00806065]
[1731662292085,43.902374,212.24,212.06,28.2442]
[1731662292286,202.28418465,212.24,212.06,32.9598]
[1731662292496,202.22343465,212.24,212.06,32.9598]
[1731662292694,206.80964465,212.24,212.07,0.22549]
[1731662292996,183.03276065,212.24,212.08,0.2]
[1731662293183,18.50826065,212.19,212.12,18.50826065]
[1731662293498,18.50826065,212.13,212.06,35.01256065]
[1731662293699,18.50826065,212.15,212.08,18.50826065]
[1731662293896,158.32106065,212.22,212.07,0.12549]
[1731662294103,26.2318,212.26,212.07,0.12549]
[1731662294104,18.50826065,212.23,212.16,18.50826065]
[1731662294598,18.50826065,212.22,212.15,18.50826065]
[1731662294800,18.50826065,212.24,212.17,18.50826065]
[1731662295004,40.02876065,212.26,212.19,18.50826065]
[1731662295181,18.50826065,212.25,212.14,11.7844]
[1731662295378,18.50826065,212.24,212.17,18.50826065]
[1731662296511,18.50826065,212.25,212.18,18.50826065]
[1731662296684,18.50826065,212.24,212.17,4.713]
[1731662296887,18.50826065,212.23,212.17,11.783]
[1731662297185,18.50826065,212.18,212.12,11.7855]
[1731662297404,18.50826065,212.14,212.08,4.7151]
[1731662297607,20.0,212.19,212.08,16.5031]
[1731662297795,15.7106,212.2,212.08,16.5031]
[1731662298507,18.50826065,212.16,212.09,18.50826065]
[1731662298813,18.50826065,212.17,212.1,18.50826065]
[1731662299107,18.50826065,212.16,212.09,18.50826065]
[1731662299291,18.50826065,212.17,212.09,18.50826065]
[1731662299602,18.50826065,212.17,212.08,16.5031]
[1731662299801,18.50826065,212.17,212.1,4.7147]
[1731662300507,18.50826065,212.17,212.1,35.00976065]
[1731662300704,18.50826065,212.16,212.1,11.7868]
[1731662301011,18.50826065,212.14,212.07,23.22346065]
[1731662301184,18.50826065,212.16,212.08,18.50826065]
[1731662301688,158.44655065,212.22,212.07,16.5037]
[1731662301689,18.50826065,212.13,212.07,16.5037]
[1731662301995,18.50826065,212.14,212.07,35.01196065]
[1731662302184,18.50826065,212.16,212.09,18.50826065]
[1731662302384,18.50826065,212.18,212.11,18.50826065]
[1731662302903,0.4532661,212.27,212.17,18.50826065]
[1731662303090,0.4532661,212.27,212.21,18.50826065]
[1731662303691,0.4532661,212.27,212.2,18.50826065]
[1731662303894,18.50826065,212.26,212.2,18.50826065]
[1731662304107,18.50826065,212.24,212.15,18.50826065]
[1731662304807,18.50826065,212.22,212.15,18.50826065]
[1731662305196,18.50826065,212.22,212.14,22.5033]
[1731662305507,18.50826065,212.22,212.15,18.50826065]
[1731662305728,18.50826065,212.24,212.15,18.50826065]
[1731662306010,0.4532661,212.27,212.21,18.50826065]
[1731662306189,0.4532661,212.27,212.23,18.50826065]
[1731662306387,0.4532661,212.27,212.22,18.50826065]
[1731662307405,0.4532661,212.27,212.22,23.22006065]
[1731662307604,0.4532661,212.27,212.24,18.50826065]
[1731662307793,0.4532661,212.27,212.23,18.50826065]
[1731662308802,18.50826065,212.25,212.17,18.50826065]
[1731662309019,18.50826065,212.25,212.17,11.7825]
[1731662309020,18.50826065,212.22,212.17,11.7825]
[1731662309520,18.50826065,212.19,212.12,16.4994]
[1731662309695,18.50826065,212.21,212.14,18.50826065]
[1731662309897,18.50826065,212.2,212.13,18.50826065]
[1731662310195,0.4532661,212.27,212.14,0.1]
[1731662310601,0.4532661,212.27,212.14,23.876884]
[1731662310900,0.4532661,212.27,212.15,20.0]
[1731662311102,0.4532661,212.27,212.13,20.22549]
[1731662311103,5.1642661,212.27,212.13,20.12549]
[1731662311431,18.50826065,212.25,212.17,18.50826065]
[1731662311914,18.50826065,212.26,212.19,18.50826065]
[1731662312096,18.50826065,212.24,212.15,16.4977]
[1731662312291,18.50826065,212.17,212.09,24.56686065]
[1731662312491,23.876884,212.26,212.11,16.5006]
[1731662312492,23.776884,212.26,212.11,16.5006]
[1731662313219,0.12549,212.25,212.11,16.5006]
[1731662313714,23.21976065,212.25,212.17,18.50826065]
[1731662313918,23.67252675,212.27,212.2,18.50826065]
[1731662314127,0.4532661,212.27,212.22,18.50826065]
[1731662314422,0.4532661,212.27,212.25,18.50826065]
[1731662314595,0.4532661,212.27,212.24,18.50826065]
[1731662315214,0.4532661,212.27,212.19,6.4816]
[1731662315391,0.4532661,212.27,212.22,18.50826065]
[1731662315594,0.4532661,212.27,212.23,4.7118]
[1731662315790,0.4532661,212.27,212.25,18.50826065]
[1731662315995,0.4532661,212.27,212.26,18.50826065]
[1731662317603,0.4532661,212.27,212.26,23.21946065]
[1731662319121,0.4532661,212.27,212.25,4.7113]
[1731662319304,0.4532661,212.27,212.24,11.7791]
[1731662320901,0.4532661,212.27,212.24,30.28736065]
[1731662321220,0.4532661,212.27,212.26,18.50826065]
[1731662321605,0.4532661,212.27,212.26,23.21946065]
[1731662323309,0.4532661,212.27,212.26,4.7112]
[1731662324726,0.4532661,212.27,212.24,11.7791]
[1731662325233,0.4532661,212.27,212.24,34.99896065]
[1731662325409,0.4532661,212.27,212.25,18.50826065]
[1731662325924,0.4532661,212.27,212.21,18.50826065]
[1731662326123,0.4532661,212.27,212.2,4.7125]
[1731662326124,18.50826065,212.26,212.2,4.7125]
[1731662326313,18.50826065,212.26,212.2,16.4938]
[1731662326618,18.50826065,212.23,212.18,4.7128]
[1731662326823,18.50826065,212.23,212.16,4.7134]
[1731662327326,18.50826065,212.21,212.16,4.7134]
[1731662327616,18.50826065,212.22,212.16,4.7134]
[1731662328903,18.50826065,212.22,212.15,11.7836]
[1731662328904,18.50826065,212.2,212.15,11.7836]
[1731662329103,18.50826065,212.18,212.1,30.29466065]
[1731662329313,18.50826065,212.18,212.11,18.50826065]
[1731662329710,18.50826065,212.19,212.12,18.50826065]
[1731662330216,18.50826065,212.18,212.11,18.50826065]
[1731662330612,18.50826065,212.18,212.1,35.00926065]
[1731662331527,18.50826065,212.18,212.11,18.50826065]
[1731662331853,18.50826065,212.18,212.12,4.7143]
[1731662332029,18.50826065,212.17,212.1,16.5009]
[1731662332203,23.22126065,212.18,212.1,35.00916065]
[1731662332621,18.50826065,212.18,212.11,18.50826065]
[1731662333104,18.50826065,212.18,212.1,35.00916065]
[1731662333615,18.50826065,212.16,212.1,16.5009]
[1731662333813,18.50826065,212.16,212.1,11.7864]
[1731662336419,18.50826065,212.15,212.1,11.7864]
[1731662336626,23.22186065,212.15,212.08,4.7151]
[1731662336817,23.22186065,212.15,212.08,23.22336065]
[1731662336818,18.50826065,212.15,212.08,23.22336065]
[1731662337017,18.50826065,212.15,212.08,4.7151]
[1731662337221,18.50826065,212.14,212.08,11.788]
[1731662337411,18.50826065,212.13,212.08,11.788]
[1731662337733,18.50826065,212.14,212.08,11.788]
[1731662337931,18.50826065,212.14,212.08,16.5032]
[1731662338431,18.50826065,212.15,212.08,16.5032]
[1731662339022,18.50826065,212.14,212.08,11.788]
[1731662339221,18.50826065,212.13,212.08,11.788]
[1731662339613,23.902374,212.17,212.08,11.788]
[1731662339614,18.50826065,212.14,212.08,11.788]
[1731662339817,18.50826065,212.13,212.08,11.788]
[1731662340328,18.50826065,212.15,212.08,30.29626065]
[1731662340537,18.50826065,212.17,212.1,18.50826065]
[1731662340704,158.32106065,212.2,212.08,11.788]
[1731662340705,18.50826065,212.2,212.13,18.50826065]
[1731662340906,0.3307628,212.22,212.17,18.50826065]
[1731662341331,0.3307628,212.22,212.17,23.22136065]
[1731662341916,0.3307628,212.22,212.18,18.50826065]
[1731662343046,0.3307628,212.22,212.21,18.50826065]
[1731662344219,0.3307628,212.22,212.21,23.22056065]
[1731662344533,0.3307628,212.22,212.19,11.7815]
[1731662344534,0.3307628,212.22,212.19,35.00236065]
[1731662344949,0.3307628,212.22,212.17,4.713]
[1731662345440,0.3307628,212.22,212.2,18.50826065]
[1731662345620,0.3307628,212.22,212.18,18.50826065]
[1731662345817,0.3307628,212.22,212.17,16.496]
[1731662346018,0.3307628,212.22,212.21,18.50826065]
[1731662346330,0.3307628,212.22,212.21,23.22056065]
[1731662347436,6.28e-05,212.22,212.21,68.73863465]
[1731662349130,6.28e-05,212.22,212.21,68.61314465]
[1731662349329,6.28e-05,212.22,212.21,4.7123]
[1731662349517,6.28e-05,212.22,212.21,23.22056065]
[1731662351139,6.28e-05,212.22,212.21,47.12293465]
[1731662352937,6.28e-05,212.22,212.21,67.32293465]
[1731662353243,18.50826065,212.38,212.31,18.50826065]
[1731662353537,158.77763765,212.42,212.29,18.50826065]
[1731662353538,18.50826065,212.36,212.29,18.50826065]
[1731662353745,0.456577,212.42,212.35,18.50826065]
[1731662353918,0.456577,212.42,212.36,18.50826065]
[1731662354119,18.96483765,212.42,212.34,18.50826065]
[1731662354326,18.50826065,212.39,212.29,6.6165]
[1731662354531,18.50826065,212.38,212.29,6.6165]
[1731662354740,18.50826065,212.38,212.3,18.50826065]
[1731662354940,18.50826065,212.36,212.29,25.12476065]
[1731662355142,18.50826065,212.39,212.32,18.50826065]
[1731662355333,18.50826065,212.4,212.33,18.50826065]
[1731662355817,18.50826065,212.41,212.34,18.50826065]
[1731662356021,18.96483765,212.42,212.35,18.50826065]
[1731662356219,18.50826065,212.41,212.33,18.50826065]
[1731662356420,18.50826065,212.39,212.31,18.50826065]
[1731662356845,18.50826065,212.39,212.32,18.50826065]
[1731662357345,18.50826065,212.37,212.33,4.7096]
[1731662357544,18.50826065,212.37,212.31,4.7099]
[1731662357758,18.50826065,212.36,212.31,4.7099]
[1731662358156,18.50826065,212.34,212.31,4.7099]
[1731662358351,18.50826065,212.36,212.31,4.7099]
[1731662359153,18.50826065,212.37,212.31,4.7099]
[1731662360449,18.50826065,212.37,212.3,11.7757]
[1731662361043,18.50826065,212.36,212.3,11.7757]
[1731662361454,18.50826065,212.32,212.3,11.7757]
[1731662361956,18.50826065,212.32,212.27,4.7109]
[1731662362137,18.50826065,212.33,212.27,16.4883]
[1731662362460,18.50826065,212.36,212.28,18.50826065]
[1731662362754,18.50826065,212.36,212.29,4.7105]
[1731662363158,18.50826065,212.38,212.31,18.50826065]
[1731662363352,18.50826065,212.36,212.29,16.4868]
[1731662363659,18.50826065,212.33,212.29,16.4868]
[1731662363953,18.50826065,212.33,212.29,11.7763]
[1731662364734,11.54250965,212.33,212.29,11.7763]
[1731662365335,11.54250965,212.35,212.29,11.7763]
[1731662365542,169.8635703,212.39,212.32,11.54250965]
[1731662366047,0.456577,212.42,212.34,11.54250965]
[1731662366359,11.54250965,212.4,212.33,11.54250965]
[1731662366552,11.54250965,212.37,212.31,15.4255]
[1731662366863,11.54250965,212.37,212.32,4.7098]
[1731662367061,11.54250965,212.38,212.32,4.7098]
[1731662367243,11.54250965,212.39,212.32,4.7098]
[1731662367443,11.54250965,212.39,212.32,16.25230965]
[1731662367667,11.99908665,212.42,212.35,11.54250965]
[1731662367842,0.456577,212.42,212.35,11.54250965]
[1731662368046,11.54250965,212.41,212.34,11.54250965]
[1731662368561,11.54250965,212.4,212.33,11.54250965]
[1731662369465,11.54250965,212.38,212.34,11.7735]
[1731662369651,11.54250965,212.39,212.34,11.7735]
[1731662369960,11.54250965,212.39,212.34,16.4829]
[1731662370265,11.54250965,212.38,212.32,4.7097]
[1731662370961,11.54250965,212.39,212.32,28.02680965]
[1731662371543,0.456577,212.42,212.35,11.54250965]
[1731662372243,11.99908665,212.42,212.35,11.54250965]
[1731662372957,0.456577,212.42,212.36,16.25130965]
[1731662374274,0.456577,212.42,212.32,11.7746]
[1731662374275,11.54250965,212.41,212.33,11.54250965]
[1731662374457,11.54250965,212.39,212.32,16.4844]
[1731662374661,11.54250965,212.38,212.32,16.4844]
[1731662375150,11.54250965,212.36,212.32,16.4844]
[1731662375346,11.54250965,212.35,212.32,11.7746]
[1731662375567,11.54250965,212.34,212.32,11.7746]
[1731662376658,11.54250965,212.33,212.26,28.03170965]
[1731662377571,11.54250965,212.33,212.26,16.4892]
[1731662379757,24.7083,212.39,212.29,11.54250965]
[1731662379964,11.54250965,212.36,212.29,11.54250965]
[1731662381252,11.54250965,212.36,212.28,16.4875]
[1731662381253,11.54250965,212.36,212.3,4.7103]